bitfinex/quotes_SOLUSD_20250806
["timestamp","ask_amount","ask_price","bid_price","bid_amount"]
[1754458885515,0.03,164.66,164.65,89.1]
[1754458885684,0.03,164.66,164.65,97.40239318]
[1754458886138,0.73,164.66,164.63,8.30239318]
[1754458886287,0.03,164.66,164.65,8.30239318]
[1754458886487,0.03,164.66,164.63,0.24]
[1754458886715,0.03,164.66,164.65,8.30239318]
[1754458886988,0.03,164.66,164.65,14.37588239]
[1754458887825,0.03,164.66,164.63,6.3139768]
[1754458888020,0.03,164.66,164.65,8.30239318]
[1754458888804,0.03,164.66,164.65,8.54239318]
[1754458889041,0.03,164.66,164.65,14.61588239]
[1754458890314,0.03,164.66,164.65,6.31348921]
[1754458890637,0.03,164.66,164.65,14.61588239]
[1754458891149,0.03,164.66,164.65,14.37588239]
[1754458891830,0.03,164.66,164.65,14.61588239]
[1754458892013,0.03,164.66,164.65,103.71588239]
[1754458894839,0.03,164.66,164.65,103.47588239]
[1754458895213,0.72,164.66,164.65,8.30239318]
[1754458895713,0.72,164.66,164.64,89.1]
[1754458896040,0.03,164.66,164.64,89.1]
[1754458896231,0.69,164.65,164.64,8.30239318]
[1754458896839,0.69,164.65,164.63,8.30239318]
[1754458897136,0.69,164.64,164.63,8.30239318]
[1754458897632,0.69,164.64,164.63,14.37662023]
[1754458897833,0.03,164.66,164.63,14.37662023]
[1754458898043,0.72,164.66,164.64,8.30239318]
[1754458898608,0.03,164.66,164.63,6.07422705]
[1754458898838,0.69,164.65,164.64,8.30239318]
[1754458899344,0.69,164.65,164.61,30.36239318]
[1754458899638,0.69,164.65,164.61,8.30239318]
[1754458899811,6.76352355,164.65,164.61,8.30239318]
[1754458900016,0.69,164.64,164.61,8.30239318]
[1754458900215,0.69,164.64,164.6,8.30239318]
[1754458900705,8.99239318,164.64,164.59,8.30239318]
[1754458900907,0.69,164.63,164.59,8.30239318]
[1754458901108,0.69,164.63,164.58,6.07607242]
[1754458901327,0.69,164.63,164.59,8.30239318]
[1754458901635,8.99239318,164.63,164.58,8.30239318]
[1754458901833,8.30239318,164.63,164.59,8.30239318]
[1754458902139,0.69,164.63,164.61,8.30239318]
[1754458902346,0.69,164.63,164.62,8.30239318]
[1754458902548,0.72,164.66,164.58,15.34621557]
[1754458902847,0.72,164.66,164.64,8.30239318]
[1754458904115,0.69,164.65,164.6,6.07533414]
[1754458904432,0.69,164.64,164.6,8.30239318]
[1754458904611,0.69,164.63,164.61,8.30239318]
[1754458904811,0.69,164.63,164.62,8.30239318]
[1754458905446,0.69,164.63,164.61,8.30239318]
[1754458905628,0.69,164.65,164.62,8.30239318]
[1754458906247,0.69,164.64,164.6,6.0750164]
[1754458906551,0.69,164.64,164.62,8.30239318]
[1754458906747,0.69,164.64,164.6,6.0750164]
[1754458907107,14.40558302,164.66,164.61,8.30239318]
[1754458907419,0.69,164.65,164.62,8.30239318]
[1754458907622,0.69,164.64,164.62,8.30239318]
[1754458907831,0.69,164.64,164.61,6.07482867]
[1754458908053,0.69,164.63,164.59,6.07570326]
[1754458908352,0.69,164.63,164.61,8.30239318]
[1754458908926,0.03,164.66,164.62,8.30239318]
[1754458909126,0.69,164.65,164.62,8.30239318]
[1754458909328,0.69,164.64,164.62,8.30239318]
[1754458909619,6.07351594,164.65,164.6,6.07521802]
[1754458909821,6.07351594,164.65,164.61,8.30239318]
[1754458909822,0.69,164.63,164.61,8.30239318]
[1754458910621,0.69,164.65,164.62,8.30239318]
[1754458910923,0.03,164.66,164.63,8.30239318]
[1754458911316,0.03,164.66,164.62,8.30239318]
[1754458911317,0.69,164.65,164.62,8.30239318]
[1754458911515,0.03,164.66,164.62,8.30239318]
[1754458911516,6.10314711,164.66,164.62,8.30239318]
[1754458911744,0.69,164.64,164.62,8.30239318]
[1754458912240,0.72,164.66,164.63,8.30239318]
[1754458912419,6.79318993,164.66,164.62,8.30239318]
[1754458912623,6.79318993,164.66,164.61,8.30239318]
[1754458912624,0.69,164.65,164.61,8.30239318]
[1754458913549,0.69,164.65,164.62,8.30239318]
[1754458914046,0.69,164.64,164.62,8.30239318]
[1754458914348,0.69,164.64,164.61,89.1]
[1754458914513,0.69,164.63,164.61,89.1]
[1754458914715,0.69,164.63,164.61,97.40239318]
[1754458915135,15.09551688,164.66,164.61,97.40239318]
[1754458915443,0.69,164.65,164.61,97.40239318]
[1754458915630,0.72,164.66,164.64,8.30239318]
[1754458915826,0.03,164.66,164.62,0.24]
[1754458916026,0.03,164.66,164.64,8.30239318]
[1754458916427,0.72,164.66,164.61,95.17476363]
[1754458916633,0.72,164.66,164.63,8.30239318]
[1754458917140,0.72,164.66,164.64,8.30239318]
[1754458918237,0.72,164.66,164.63,8.30239318]
[1754458918644,0.69,164.65,164.63,8.30239318]
[1754458918942,0.69,164.64,164.63,8.30239318]
[1754458919324,4.79771412,164.66,164.63,8.30239318]
[1754458919540,0.72,164.66,164.63,8.30239318]
[1754458919932,0.69,164.65,164.63,8.30239318]
[1754458920354,0.69,164.64,164.63,8.30239318]
[1754458920650,0.69,164.64,164.62,89.1]
[1754458920856,0.69,164.63,164.62,89.1]
[1754458921018,0.69,164.63,164.58,8.30239318]
[1754458921019,8.99239318,164.63,164.58,8.30239318]
[1754458921225,8.99239318,164.62,164.58,8.30239318]
[1754458921528,0.69,164.61,164.57,8.36239318]
[1754458921727,0.69,164.6,164.57,8.36239318]
[1754458922237,0.69,164.6,164.57,0.06]
[1754458922545,0.69,164.6,164.57,8.36239318]
[1754458923848,6.07504858,164.61,164.57,8.36239318]
[1754458924150,0.7,164.59,164.57,0.06]
[1754458924348,9.00239318,164.59,164.57,0.06]
[1754458924735,9.00239318,164.58,164.57,0.06]
[1754458925147,35.00239318,164.58,164.57,0.06]
[1754458925349,45.16287471,164.58,164.57,0.06]
[1754458925746,4.78440911,164.58,164.57,0.06]
[1754458925958,0.7,164.58,164.57,0.06]
[1754458926138,0.7,164.6,164.57,0.06]
[1754458926570,4.77991429,164.6,164.57,0.06]
[1754458926876,0.7,164.62,164.59,8.30239318]
[1754458927059,0.7,164.62,164.58,8.30239318]
[1754458927266,0.7,164.61,164.57,8.36239318]
[1754458927442,0.7,164.6,164.57,8.36239318]
[1754458927773,0.7,164.59,164.57,0.06]
[1754458927969,9.00239318,164.59,164.57,0.06]
[1754458928174,0.7,164.58,164.57,0.06]
[1754458928689,13.08133407,164.6,164.57,0.06]
[1754458929192,0.7,164.6,164.57,0.06]
[1754458929340,0.7,164.6,164.57,8.36239318]
[1754458929546,28.81465019,164.62,164.58,8.30239318]
[1754458929765,28.81465019,164.62,164.57,0.06]
[1754458929766,0.7,164.61,164.57,0.06]
[1754458930079,0.7,164.61,164.58,8.30239318]
[1754458930586,8.33239318,164.66,164.6,8.30239318]
[1754458930742,0.7,164.65,164.62,8.30239318]
[1754458932053,4.10597395,164.66,164.63,8.30239318]
[1754458932254,4.10597395,164.66,164.64,8.30239318]
[1754458932486,0.03,164.66,164.64,8.30239318]
[1754458932866,0.03,164.66,164.63,8.30239318]
[1754458933179,0.73,164.66,164.63,8.30239318]
[1754458933685,0.03,164.66,164.64,8.30239318]
[1754458933860,0.03,164.66,164.62,6.31458553]
[1754458934059,0.03,164.66,164.64,8.30239318]
[1754458934352,0.03,164.66,164.61,6.07485714]
[1754458934558,0.7,164.65,164.6,6.07528502]
[1754458934757,6.10314994,164.66,164.57,22.34]
[1754458934758,0.7,164.64,164.61,8.30239318]
[1754458935349,0.7,164.63,164.61,8.30239318]
[1754458935785,12.37902847,164.65,164.57,28.17613314]
[1754458935958,0.7,164.62,164.58,8.30239318]
[1754458936160,0.7,164.62,164.57,0.06]
[1754458936161,0.7,164.61,164.57,0.06]
[1754458936373,0.7,164.61,164.57,8.36239318]
[1754458936599,0.7,164.6,164.57,0.06]
[1754458937586,6.0754146,164.6,164.57,0.06]
[1754458937885,0.7,164.59,164.57,0.06]
[1754458938056,4.7771195,164.59,164.57,0.06]
[1754458938251,0.7,164.58,164.57,0.06]
[1754458938804,9.00239318,164.58,164.57,0.06]
[1754458939160,31.04239318,164.58,164.57,0.06]
[1754458939461,35.1208761,164.58,164.57,0.06]
[1754458939667,41.19694852,164.58,164.57,0.06]
[1754458939855,4.07848292,164.58,164.57,0.06]
[1754458940058,4.07848292,164.6,164.57,8.36239318]
[1754458940483,4.07848292,164.6,164.58,8.30239318]
[1754458940659,4.07848292,164.6,164.58,13.29804597]
[1754458941793,4.07848292,164.6,164.57,0.06]
[1754458941794,0.7,164.59,164.57,0.06]
[1754458942499,6.07505398,164.61,164.57,0.06]
[1754458942693,20.07309995,164.61,164.57,0.06]
[1754458942896,4.78091463,164.6,164.57,0.06]
[1754458943281,4.08091463,164.6,164.57,0.06]
[1754458943581,0.7,164.59,164.57,0.06]
[1754458946104,0.7,164.58,164.57,0.06]
[1754458946664,13.99804597,164.58,164.57,0.06]
[1754458946866,4.7820258,164.58,164.57,0.06]
[1754458947084,0.7,164.58,164.57,0.06]
[1754458948374,4.0820258,164.6,164.57,13.35804597]
[1754458948587,4.0820258,164.6,164.58,13.29804597]
[1754458948790,4.7820258,164.6,164.57,13.35804597]
[1754458949070,0.7,164.59,164.57,0.06]
[1754458949271,0.7,164.59,164.57,13.35804597]
[1754458949495,0.7,164.59,164.57,0.06]
[1754458950008,0.7,164.58,164.57,0.06]
[1754458950515,4.0820258,164.59,164.57,0.06]
[1754458950696,4.7820258,164.6,164.57,0.06]
[1754458950903,0.7,164.59,164.57,0.06]
[1754458951382,0.7,164.58,164.57,0.06]
[1754458952073,13.99804597,164.58,164.57,0.06]
[1754458952505,24.15571692,164.58,164.57,0.06]
[1754458954486,10.85767095,164.58,164.57,0.06]
[1754458954822,20.07411839,164.58,164.57,0.06]
[1754458955020,24.15571692,164.58,164.57,0.06]
[1754458957715,46.19571692,164.58,164.57,0.06]
[1754458960527,26.12159853,164.58,164.57,0.06]
[1754458962023,26.82159853,164.58,164.57,0.06]
[1754458962195,46.19571692,164.58,164.57,0.06]
[1754458962614,41.21496625,164.58,164.57,0.06]
[1754458962816,26.12159853,164.58,164.57,0.06]
[1754458963831,4.08159853,164.58,164.57,0.06]
[1754458964036,22.04,164.58,164.57,0.06]
[1754458964221,26.12159853,164.58,164.57,0.06]
[1754458965124,34.43889383,164.58,164.57,0.06]
[1754458966837,26.12159853,164.58,164.57,0.06]
[1754458967131,35.13889383,164.58,164.57,0.06]
[1754458967949,41.21496625,164.58,164.57,0.06]
[1754458969021,67.21496625,164.58,164.57,0.06]
[1754458969652,45.17496625,164.58,164.57,0.06]
[1754458969818,67.19496625,164.58,164.57,0.06]
[1754458970021,82.30118182,164.58,164.57,0.06]
[1754458971155,67.19496625,164.58,164.57,0.06]
[1754458973967,82.30118182,164.58,164.57,0.06]
[1754458978659,82.33118182,164.58,164.57,0.06]
[1754458979355,87.41316172,164.58,164.57,0.06]
[1754458980137,26.0,164.56,164.55,0.06]
[1754458980359,60.41889383,164.56,164.55,0.06]
[1754458980754,4.08159853,164.56,164.55,0.3]
[1754458980965,26.10159853,164.56,164.55,0.3]
[1754458981642,4.09314291,164.56,164.55,0.3]
[1754458981859,4.09314291,164.56,164.55,8.6172953]
[1754458982164,4.09314291,164.56,164.55,0.3]
[1754458984562,4.09314291,164.56,164.55,8.6172953]
[1754458985361,4.09314291,164.56,164.55,0.06]
[1754458985566,4.09314291,164.56,164.55,8.3772953]
[1754458985768,4.09314291,164.56,164.55,8.6172953]
[1754458986366,4.09314291,164.56,164.55,0.3]
[1754458986564,4.09314291,164.56,164.55,8.6172953]
[1754458986760,4.09314291,164.56,164.55,14.69447548]
[1754458987062,4.09314291,164.56,164.55,8.6172953]
[1754458987781,4.09314291,164.56,164.55,8.3772953]
[1754458990472,4.09314291,164.56,164.55,0.06]
[1754458990670,4.09314291,164.56,164.55,8.3772953]
[1754458992390,4.09314291,164.56,164.55,14.45447548]
[1754458992551,4.09314291,164.56,164.55,8.3772953]
[1754458992754,4.09314291,164.56,164.55,0.06]
[1754458993185,4.09314291,164.56,164.55,8.3772953]
[1754458994980,4.09314291,164.56,164.55,0.06]
[1754458995165,13.09043821,164.56,164.55,0.06]
[1754458995364,13.09435634,164.56,164.55,0.06]
[1754458995862,4.77706104,164.56,164.55,0.06]
[1754458996182,13.09435634,164.56,164.55,0.06]
[1754458997562,4.77706104,164.56,164.55,0.06]
[1754458997984,13.09435634,164.56,164.55,0.06]
[1754458998159,18.21568264,164.56,164.55,0.06]
[1754458998361,13.09435634,164.56,164.55,0.06]
[1754458998661,18.21568264,164.56,164.55,0.06]
[1754458998967,24.29249352,164.56,164.55,0.06]
[1754458999678,37.97519822,164.56,164.55,0.06]
[1754458999865,31.89838734,164.56,164.55,0.06]
[1754459000058,40.21568264,164.56,164.55,0.06]
[1754459000258,26.77706104,164.56,164.55,0.06]
[1754459000573,9.21838734,164.56,164.55,0.06]
[1754459000759,31.21838734,164.56,164.55,0.06]
[1754459000958,9.21838734,164.56,164.55,0.06]
[1754459001392,4.09706104,164.56,164.55,8.6172953]
[1754459003082,4.09706104,164.56,164.55,8.3772953]
[1754459003697,4.09706104,164.56,164.55,0.06]
[1754459003870,4.09706104,164.56,164.55,8.3772953]
[1754459004807,4.09706104,164.56,164.55,14.45447548]
[1754459006485,4.09706104,164.56,164.55,14.69447548]
[1754459006678,4.09706104,164.56,164.55,14.45447548]
[1754459008277,4.09706104,164.56,164.55,14.69447548]
[1754459009175,4.09706104,164.56,164.55,14.45447548]
[1754459010805,0.03,164.58,164.55,14.69447548]
[1754459010806,4.09706104,164.57,164.55,14.69447548]
[1754459010981,0.03,164.58,164.56,8.5572953]
[1754459011330,4.09569839,164.57,164.56,0.24]
[1754459011469,0.03,164.58,164.56,0.24]
[1754459011900,0.03,164.58,164.55,6.13718018]
[1754459012081,0.03,164.58,164.56,0.24]
[1754459012290,0.03,164.58,164.57,0.24]
[1754459012511,0.03,164.58,164.57,14.63373693]
[1754459013614,0.03,164.59,164.58,8.3172953]
[1754459013778,0.03,164.59,164.58,45.64351087]
[1754459013979,0.03,164.6,164.59,15.10621557]
[1754459014179,0.03,164.6,164.59,31.98080617]
[1754459014478,1e-08,164.6,164.59,38.05650943]
[1754459015729,1e-08,164.6,164.59,40.48908143]
[1754459017732,0.03,164.61,164.59,40.48908143]
[1754459017922,0.03,164.61,164.6,31.74080617]
[1754459018229,0.03,164.61,164.6,31.98080617]
[1754459019421,0.03,164.61,164.6,34.41323017]
[1754459019622,0.03,164.61,164.6,40.48856431]
[1754459019821,0.03,164.61,164.6,25.14234874]
[1754459020410,0.03,164.61,164.6,41.09609772]
[1754459020808,0.03,164.61,164.6,40.48856431]
[1754459021010,0.03,164.61,164.6,40.24856431]
[1754459022405,0.03,164.61,164.6,16.82505344]
[1754459022624,0.03,164.61,164.6,25.14234874]
[1754459023643,0.03,164.61,164.6,40.48856431]
[1754459023816,0.03,164.61,164.6,130.19609772]
[1754459024001,0.03,164.64,164.61,89.07]
[1754459024206,0.03,164.64,164.62,21.98]
[1754459024713,0.03,164.64,164.63,8.446817]
[1754459025228,0.71,164.64,164.63,16.7641123]
[1754459025594,0.71,164.64,164.63,14.39152235]
[1754459026598,0.03,164.64,164.63,14.39152235]
[1754459026818,1e-08,164.64,164.63,30.34516062]
[1754459027733,1e-08,164.64,164.63,33.40353807]
[1754459028104,1e-08,164.64,164.63,14.39152235]
[1754459028304,0.68000001,164.64,164.63,14.39152235]
[1754459030428,0.68000001,164.64,164.63,6.07422705]
[1754459030629,0.68000001,164.64,164.63,14.39152235]
[1754459030833,0.68000001,164.64,164.63,8.3172953]
[1754459031005,0.68000001,164.64,164.62,14.39176977]
[1754459031434,0.68000001,164.64,164.62,8.3172953]
[1754459032118,0.68000001,164.64,164.62,14.3918605]
[1754459032545,0.68000001,164.64,164.63,8.3172953]
[1754459032721,1e-08,164.64,164.63,8.3172953]
[1754459033433,0.68000001,164.64,164.63,8.3172953]
[1754459033937,0.68000001,164.64,164.63,14.39152235]
[1754459035152,0.68000001,164.64,164.63,8.3172953]
[1754459036554,0.68000001,164.64,164.62,6.07448946]
[1754459036711,1e-08,164.64,164.63,8.3172953]
[1754459037223,0.68000001,164.64,164.63,8.3172953]
[1754459038045,0.68000001,164.64,164.62,6.07448946]
[1754459038254,1e-08,164.64,164.63,8.3172953]
[1754459038458,1e-08,164.64,164.63,14.39152235]
[1754459039030,0.68000001,164.64,164.63,8.3172953]
[1754459039238,0.68000001,164.64,164.62,14.39179598]
[1754459039547,0.68000001,164.64,164.61,21.96]
[1754459039720,8.99729531,164.64,164.6,95.14532148]
[1754459039923,0.68,164.63,164.6,103.59213848]
[1754459040270,0.68,164.63,164.59,28.01566084]
[1754459040271,8.9972953,164.63,164.59,28.01566084]
[1754459040420,8.3172953,164.63,164.59,28.01566084]
[1754459040623,0.68,164.62,164.59,28.01566084]
[1754459041267,0.68,164.62,164.59,6.07566084]
[1754459041563,0.68,164.62,164.58,14.39328634]
[1754459042937,8.9972953,164.62,164.58,14.39328634]
[1754459043146,8.9972953,164.61,164.57,28.01639589]
[1754459043323,6.07448553,164.63,164.57,28.01639589]
[1754459043324,0.68,164.6,164.57,28.01639589]
[1754459043831,0.68,164.6,164.58,8.3172953]
[1754459044146,1e-08,164.64,164.58,14.39328472]
[1754459044334,1e-08,164.64,164.63,8.3172953]
[1754459044923,1e-08,164.64,164.63,8.5572953]
[1754459045341,1e-08,164.64,164.63,24.27093357]
[1754459045933,8.44681721,164.66,164.63,24.27093357]
[1754459045934,8.44681721,164.66,164.64,15.10621557]
[1754459046134,0.03,164.66,164.65,45.36351087]
[1754459046362,0.03,164.66,164.65,51.67700008]
[1754459048231,0.03,164.66,164.65,28.01348921]
[1754459048470,0.03,164.66,164.65,36.33078451]
[1754459048975,0.03,164.66,164.65,36.57078451]
[1754459049473,0.03,164.66,164.65,51.67700008]
[1754459050236,0.03,164.68,164.66,23.42351087]
[1754459050572,0.68,164.74,164.68,15.10621557]
[1754459050741,0.68,164.75,164.73,8.3172953]
[1754459050945,0.68,164.75,164.74,8.3172953]
[1754459051346,0.68,164.75,164.73,8.3172953]
[1754459051957,4.07193093,164.77,164.74,8.3172953]
[1754459052448,0.68,164.76,164.74,8.3172953]
[1754459052752,0.68,164.76,164.75,8.3172953]
[1754459053863,0.68,164.76,164.75,14.38709803]
[1754459054471,0.68,164.76,164.74,6.07009765]
[1754459054646,0.68,164.76,164.74,8.3172953]
[1754459055286,4.07193093,164.78,164.72,6.0709082]
[1754459055287,4.07193093,164.78,164.75,8.3172953]
[1754459056082,4.07193093,164.78,164.72,23.9394892]
[1754459056083,0.68,164.77,164.73,6.07020508]
[1754459056428,0.68,164.77,164.75,8.3172953]
[1754459056549,4.07193093,164.78,164.75,8.3172953]
[1754459056750,0.68,164.76,164.75,8.3172953]
[1754459057879,0.68,164.76,164.72,6.07082877]
[1754459058578,4.07193093,164.77,164.75,8.3172953]
[1754459058898,9.55128596,164.79,164.72,6.31082877]
[1754459058899,4.07193093,164.78,164.76,8.3172953]
[1754459059048,0.68,164.77,164.76,8.3172953]
[1754459059242,4.07193093,164.78,164.76,8.3172953]
[1754459059574,9.55128596,164.79,164.77,14.38611526]
[1754459059741,9.55128596,164.79,164.78,8.3172953]
[1754459061422,0.68,164.8,164.78,8.3172953]
[1754459061704,0.68,164.8,164.79,8.3172953]
[1754459063193,0.68,164.8,164.78,6.06845688]
[1754459063391,0.68,164.8,164.79,8.3172953]
[1754459063590,0.1,164.81,164.79,8.3172953]
[1754459063793,0.78,164.81,164.79,8.3172953]
[1754459063987,0.1,164.81,164.78,14.38575218]
[1754459064192,0.68,164.8,164.78,14.38575218]
[1754459064589,0.68,164.8,164.78,6.06845688]
[1754459064909,0.68,164.79,164.78,8.3172953]
[1754459065204,0.68,164.79,164.78,97.3872953]
[1754459065808,8.9972953,164.79,164.76,89.07]
[1754459065981,8.9972953,164.78,164.74,8.3172953]
[1754459066183,0.68,164.77,164.75,14.38704216]
[1754459066382,8.9972953,164.79,164.75,6.06974686]
[1754459066605,0.68,164.78,164.75,6.06974686]
[1754459066803,8.3172953,164.79,164.75,6.06974686]
[1754459066991,0.68,164.78,164.75,6.06974686]
[1754459067521,0.68,164.77,164.75,6.06974686]
[1754459067711,8.3172953,164.79,164.75,14.38704216]
[1754459068019,0.68,164.79,164.76,8.3172953]
[1754459068696,8.9972953,164.78,164.75,6.06974686]
[1754459068882,0.68,164.77,164.74,14.38735243]
[1754459069086,0.68,164.76,164.72,21.9]
[1754459069305,8.3172953,164.75,164.72,27.97086444]
[1754459069523,8.9972953,164.74,164.71,16.21208605]
[1754459069688,4.05652562,164.79,164.71,16.21208605]
[1754459069689,8.3172953,164.75,164.71,16.21208605]
[1754459069891,0.68,164.75,164.71,24.52938135]
[1754459070098,8.3172953,164.76,164.71,24.52938135]
[1754459070408,0.68,164.74,164.71,16.21208605]
[1754459070595,0.68,164.73,164.71,6.07116105]
[1754459070797,0.68,164.72,164.71,6.07116105]
[1754459071009,8.9972953,164.72,164.7,8.317295]
[1754459071325,8.9972953,164.71,164.7,8.317295]
[1754459071532,8.9972953,164.71,164.68,6.13204478]
[1754459071689,0.68,164.7,164.68,6.13204478]
[1754459071891,0.68,164.7,164.68,0.06]
[1754459072127,0.68,164.69,164.68,6.13237961]
[1754459072501,0.68,164.72,164.68,6.13237961]
[1754459072805,0.68,164.72,164.68,14.44967491]
[1754459073004,5.17114703,164.81,164.71,8.3172953]
[1754459073198,0.68,164.78,164.74,8.3172953]
[1754459074106,0.68,164.78,164.75,8.3172953]
[1754459074505,0.68,164.77,164.74,8.3172953]
[1754459076940,0.68,164.77,164.73,6.07021065]
[1754459076941,0.68,164.77,164.73,8.3172953]
[1754459077252,0.68,164.77,164.75,8.3172953]
[1754459077444,4.0884289,164.79,164.75,8.3172953]
[1754459077749,0.68,164.78,164.75,14.38703339]
[1754459078801,0.68,164.78,164.75,6.06973809]
[1754459079037,0.68,164.78,164.75,14.38703339]
[1754459079201,0.68,164.78,164.76,8.3172953]
[1754459079401,0.03,164.79,164.76,8.3172953]
[1754459079634,0.71,164.79,164.76,8.3172953]
[1754459080203,0.71,164.79,164.77,8.3172953]
[1754459080531,0.71,164.79,164.76,14.38647244]
[1754459081702,0.68,164.78,164.76,6.06917714]
[1754459082007,0.03,164.79,164.76,6.06917714]
[1754459082333,0.68,164.78,164.76,14.38647244]
[1754459082835,0.03,164.79,164.76,14.38647244]
[1754459083130,0.68,164.78,164.76,14.38647244]
[1754459084434,0.68,164.78,164.75,95.13979572]
[1754459084598,14.4157805,164.79,164.75,89.07]
[1754459084798,0.68,164.77,164.75,89.07]
[1754459085238,0.68,164.76,164.75,89.07]
[1754459085603,0.68,164.78,164.75,89.07]
[1754459085810,0.68,164.78,164.74,8.3172953]
[1754459086016,4.0937867,164.79,164.75,6.06972406]
[1754459086316,0.03,164.79,164.75,8.3172953]
[1754459086513,0.71,164.79,164.76,6.06943432]
[1754459086720,0.71,164.79,164.75,14.38704692]
[1754459086922,9.0272953,164.79,164.75,14.38704692]
[1754459087132,8.3472953,164.79,164.75,14.38704692]
[1754459087318,0.68,164.78,164.75,14.38704692]
[1754459087640,0.68,164.78,164.75,6.06975162]
[1754459088618,13.061082,164.78,164.74,6.07004435]
[1754459088825,4.07306616,164.77,164.74,6.07004435]
[1754459089009,4.75306616,164.77,164.74,6.07004435]
[1754459089344,0.68,164.77,164.74,6.07004435]
[1754459089521,13.07036146,164.77,164.73,6.07044688]
[1754459089719,4.07306616,164.76,164.73,6.07044688]
[1754459090433,8.9972953,164.77,164.73,6.07044688]
[1754459090626,13.07036146,164.77,164.73,6.07044688]
[1754459090833,13.07036146,164.77,164.71,89.31]
[1754459090834,4.75306616,164.76,164.71,89.07]
[1754459091025,4.75306616,164.75,164.69,6.07196377]
[1754459091225,9.82421319,164.74,164.68,0.06]
[1754459091547,8.3172953,164.71,164.68,0.06]
[1754459091713,4.07306616,164.7,164.68,0.06]
[1754459091917,8.3172953,164.7,164.68,6.13218659]
[1754459092111,13.07036146,164.71,164.68,6.13218659]
[1754459092343,4.07306616,164.7,164.68,6.13218659]
[1754459092641,4.07306616,164.7,164.68,0.06]
[1754459092941,8.9972953,164.71,164.68,0.06]
[1754459093150,8.3172953,164.7,164.68,0.06]
[1754459093314,0.68,164.7,164.68,0.06]
[1754459093506,4.75306616,164.7,164.68,0.06]
[1754459093707,0.68,164.7,164.68,0.06]
[1754459093959,8.9972953,164.7,164.68,0.06]
[1754459094331,13.07036146,164.7,164.68,0.06]
[1754459094520,0.68,164.7,164.68,0.06]
[1754459095206,8.9972953,164.69,164.68,0.06]
[1754459095413,0.68,164.69,164.68,0.06]
[1754459095729,8.9972953,164.69,164.68,0.06]
[1754459097640,0.68,164.69,164.68,0.06]
[1754459097848,8.9972953,164.69,164.68,0.06]
[1754459099054,4.0785983,164.71,164.68,0.06]
[1754459099220,13.0758936,164.72,164.68,0.06]
[1754459099418,0.68,164.71,164.68,0.06]
[1754459099838,8.3172953,164.69,164.68,0.06]
[1754459100447,26.0,164.66,164.61,0.06]
[1754459100624,8.3172953,164.62,164.61,0.06]
[1754459101015,5.09747919,164.67,164.61,8.7372953]
[1754459101016,4.0785983,164.63,164.61,8.7372953]
[1754459101214,5.77747919,164.67,164.61,8.7372953]
[1754459101215,26.68,164.67,164.62,8.6772953]
[1754459101467,4.0785983,164.66,164.64,8.3172953]
[1754459101948,4.0785983,164.68,164.64,8.3172953]
[1754459102147,12.3958936,164.69,164.65,8.3172953]
[1754459102355,8.3172953,164.66,164.61,0.06]
[1754459102517,8.3172953,164.64,164.61,0.06]
[1754459102718,0.68,164.64,164.61,0.06]
[1754459103225,0.68,164.64,164.61,6.13496506]
[1754459103546,0.68,164.64,164.61,14.45226036]
[1754459105016,8.3172953,164.62,164.61,0.06]
[1754459105438,8.9772953,164.62,164.61,0.06]
[1754459107930,26.66,164.62,164.61,0.06]
[1754459108141,34.9772953,164.62,164.61,0.06]
[1754459108662,26.66,164.64,164.61,0.06]
[1754459108851,22.54,164.66,164.62,8.3172953]
[1754459109030,0.66,164.66,164.63,8.3172953]
[1754459109359,0.66,164.69,164.65,8.3172953]